Cogmind - Beta 14 @@@ ROGUE MODE // 2024.12.02 @ 03:49:40 Player: akira Result: Self-destructed Performance ------------- Evolutions (3) 1500 Regions Visited (4) 800 Robots Destroyed (58) 290 Value Destroyed (1717) 1717 Prototype IDs (1) 20 Alien Tech Used (0) 0 Bonus (0) 0 TOTAL SCORE: 4327 Bonus ------- None Cogmind --------- Core Integrity 217/700 Matter 264/300 Energy 90/100 System Corruption 0% Temperature Cool (9) Movement Core (50) Location -7/Factory Parts ------- > --- POWER (1) -------- (None) > --- PROPULSION (4) --- (None) > --- UTILITY (6) ------ Advanced Visual Processing Unit Advanced Terrain Scan Processor Target Analyzer Advanced ECM Suite > --- WEAPON (2) ------- (None) > --- INVENTORY (5) ---- Light Nuclear Core System Restoration Module Improved Assault Rifle Advanced Assault Cannon Peak State ------------ > --- POWER ------------ Light Nuclear Core > --- PROPULSION ------- Cesium-ion Thruster Cesium-ion Thruster Cesium-ion Thruster Cesium-ion Thruster > --- UTILITY ---------- Advanced Visual Processing Unit Advanced Terrain Scan Processor Target Analyzer Advanced ECM Suite > --- WEAPON ----------- Improved Assault Rifle Multitool > --- INVENTORY -------- Light Deuterium Engine System Restoration Module Advanced Assault Cannon Improved Grenade Launcher Katana [Rating: 35] Favorites ----------- Power Ion Engine Engine Ion Engine Power Core Light Nuclear Core Propulsion Aluminum Leg Treads Light Treads Leg Aluminum Leg Wheel Wheel Flight Unit Cesium-ion Thruster Utility Large Storage Unit Device Advanced ECM Suite Storage Large Storage Unit Processor Visual Processing Unit Hackware Hacking Suite Protection Makeshift Light Armor Plating Weapon Makeshift Axe Energy Gun Medium Laser Energy Cannon Beam Cannon Ballistic Gun Assault Rifle Ballistic Cannon Advanced Assault Cannon Launcher Improved Grenade Launcher Special Weapon Multitool Impact Weapon Heavy Mace Slashing Weapon Makeshift Axe Build | -11 -10 -10 -8 -7 ------- Run | Yrd Mat Sub Mat Fac Slots Evolved 6 | . . . 4 2 Power . | . . . . . Propulsion 2 | . . . 1 1 Utility 4 | . . . 3 1 Weapon . | . . . . . Parts Attached 76 | 6 8 20 26 16 Power 8 | 1 1 1 3 2 Engine 5 | 1 1 1 1 1 Core 3 | . . . 2 1 Reactor . | . . . . . Propulsion 28 | 2 4 8 10 4 Treads 4 | . 2 . 2 . Leg 15 | 2 2 3 8 . Wheel 5 | . . 5 . . Hover . | . . . . . Flight 4 | . . . . 4 Utility 13 | 1 2 . 6 4 Device 2 | . . . 1 1 Storage 2 | 1 1 . . . Processor 5 | . 1 . 1 3 Hackware 2 | . . . 2 . Protection 2 | . . . 2 . Artifact . | . . . . . Weapon 27 | 2 1 11 7 6 Energy Gun 1 | 1 . . . . Energy Cannon 1 | . 1 . . . Ballistic Gun 10 | 1 . 6 2 1 Ballistic Cannon 1 | . . . . 1 Launcher 1 | . . . . 1 Special Weapon 3 | . . 1 1 1 Impact Weapon 2 | . . . 2 . Slashing Weapon 8 | . . 4 2 2 Piercing Weapon . | . . . . . Special Melee Weapon . | . . . . . Unidentified Prototypes 1 | . . . . 1 Parts Lost 22 | . 1 6 7 8 Power 3 | . . 1 1 1 Propulsion 9 | . 1 3 1 4 Utility 4 | . . . 4 . Weapon 6 | . . 2 1 3 Highest Loss Streak 4 | . 1 4 3 4 To Critical Strikes . | . . . . . Average Slot Usage (%) 90 | . 91 98 84 67 Engine 11 | . 14 14 6 2 Treads 7 | . 16 5 3 . Leg 14 | . 11 17 21 . Wheel 1 | . . 4 . . Flight 2 | . . . . 25 Device 1 | . . . 2 6 Storage 12 | . 15 14 9 . Processor 9 | . 4 14 5 15 Hackware 1 | . . . 7 . Protection 1 | . . . 8 . Energy Gun 4 | . 14 . . . Ballistic Gun 12 | . 13 16 6 1 Slashing Weapon 5 | . . 8 9 6 Peak Build Rating 35 | 7 9 15 34 35 Average Rating 15 | 4 7 13 27 29 On Entrance 11 | . 7 9 14 26 Naked Turns . | . . . . . Heaviest Build 37 | 12 34 32 37 16 Greatest Support 45 | 20 40 40 45 20 Greatest Overweight (x) 3 | 1 3 2 1 2 Average Overweight (x) . | . . . . . Largest Inventory Capacity 15 | 8 15 15 15 15 Average Capacity 13 | 7 12 15 15 5 Most Carried 15 | 8 12 15 15 15 Average Carried 11 | 5 9 12 14 4 Final Capacity 15 | 8 15 15 15 5 Final Carried 15 | 8 12 15 15 4 Class Distribution -------------------- 84% | Mutant 8% | Sprinter 3% | Scavenger-Mutant Dominant Class ---------------- Mutant | -10/Materials Mutant | -10/Subcaves Mutant | -8/Materials Sprinter | -7/Factory Resources | -11 -10 -10 -8 -7 ----------- Run | Yrd Mat Sub Mat Fac Matter Collected 1321 | 269 295 333 226 198 Remotely . | . . . . . Salvage Created 2116 | 51 481 449 841 294 Parts 124 | 10 33 24 43 14 Haulers Intercepted 2 | . 2 . . . Recyclers Shooed . | . . . . . Parts Field Recycled . | . . . . . Retrieved Matter . | . . . . . Parts Self-Destructed 9 | . . 9 . . Prevented . | . . . . . Kills | -11 -10 -10 -8 -7 ------- Run | Yrd Mat Sub Mat Fac Combat Hostiles Destroyed 44 | . 11 9 19 5 Melee 24 | . . 2 17 5 Guns 18 | . 11 7 . . Classes Destroyed 11 | 1 6 2 2 . Worker 4 | . 1 . 2 1 Tunneler 3 | 3 . . . . Hauler 2 | . 2 . . . Operator 4 | . 2 . 1 1 Watcher 1 | . 1 . . . Swarmer 11 | . 6 . 4 1 Grunt 18 | . 5 2 9 2 Duelist 1 | . . . 1 . Sentry 5 | . . 2 3 . Hunter 4 | . . . 2 2 Subdweller 5 | . . 5 . . Best Kill Streak 11 | 3 3 2 11 3 Combat Bots Only 11 | . 3 2 11 2 Max Kills in Single Turn 1 | 1 1 1 1 1 Gunslinging . | . . . . . Exploded . | . . . . . Melee 1 | . . 1 1 1 Uniques/NPCs Destroyed . | . . . . . Combat | -11 -10 -10 -8 -7 -------- Run | Yrd Mat Sub Mat Fac Hostile Shots Fired 395 | . 79 56 128 132 Missed 123 | . 24 18 33 48 Damage Taken 3219 | . 524 640 1190 865 Core 916 | . 60 107 266 483 Absorbed by Shields . | . . . . . Core Remaining (%) 61 | 100 . 33 51 . Volleys Fired 123 | 3 76 39 1 4 Largest 2 | 2 2 2 2 2 Hottest 110 | 70 70 110 58 53 Shots Fired 235 | 6 150 72 2 5 Gun 223 | 6 150 64 2 1 Cannon 2 | . . 2 . . Launcher 2 | . . . . 2 Special 8 | . . 6 . 2 Kinetic 144 | 3 76 62 2 1 Thermal 89 | 3 74 10 . 2 Explosive 2 | . . . . 2 Electromagnetic . | . . . . . Robot Hit Streak 13 | 3 10 13 1 2 Robot Miss Streak 6 | 1 6 2 1 . Penetration Max . | . . . . . Secondary Targets 2 | . 1 1 . . Max Gunslinging Chain 1 | . 1 1 . . Shots Hit Robots 207 | 3 86 47 53 18 Core Hits 74 | 3 28 15 20 8 Critical Kills . | . . . . . Critical Parts Destroyed 1 | . . . 1 . Critical Strikes 9 | . 3 . 3 3 Burn 3 | . 3 . . . Smash 1 | . . . 1 . Sever 5 | . . . 2 3 Melee Attacks 144 | . . 32 76 36 Impact 11 | . . . 11 . Slashing 133 | . . 32 65 36 Piercing . | . . . . . Sneak Attacks 10 | . . . 5 5 Combat Hostiles 3 | . . . . 3 Follow-up Attacks 9 | . . . 9 . Damage Inflicted 4581 | 38 1121 632 1998 792 Guns 1724 | 38 1121 553 12 . Cannons . | . . . . . Explosions 80 | . . . . 80 Melee 2777 | . . 79 1986 712 Ramming . | . . . . . Kinetic 1155 | 12 578 553 12 . Thermal 569 | 26 543 . . . Explosive 80 | . . . . 80 Electromagnetic . | . . . . . Impact 257 | . . . 257 . Slashing 2520 | . . 79 1729 712 Piercing . | . . . . . Highest Corruption . | . . . . . Average Corruption . | . . . . . Corruption Purged . | . . . . . Corruption Blocked . | . . . . . Overload Shots . | . . . . . Overflow Damage 314 | . . . 253 61 Projectiles . | . . . . . Explosions . | . . . . . Melee 314 | . . . 253 61 Knockbacks 2 | . . . 2 . Impact 2 | . . . 2 . Kinetic . | . . . . . Secondary . | . . . . . Self-Inflicted Damage . | . . . . . Shots . | . . . . . Rammed . | . . . . . Targets Rammed . | . . . . . Kicked . | . . . . . Crushed . | . . . . . Highest Temperature 183 | 9 183 . 16 14 Average Temperature 33 | 6 35 . 6 10 Received Heat Transfer 981 | . 156 189 441 195 Siege Activations . | . . . . . Robots Corrupted 2 | . . . 2 . Combat Hostiles 2 | . . . 2 . Parts Fried 2 | . . . 2 . Impact Corruptions 2 | . . . 2 . Robots Melted . | . . . . . Combat Hostiles . | . . . . . Parts Melted 2 | . 2 . . . Heat Transferred 1887 | 74 1813 . . . Parts Sabotaged . | . . . . . Parts Stolen . | . . . . . Parts Stripped . | . . . . . Power Chain Reactions . | . . . . . Alert | -11 -10 -10 -8 -7 ------- Run | Yrd Mat Sub Mat Fac Peak Influence 390 | 15 162 . 390 324 Initial 123 | . 9 . . 123 Average 118 | 3 81 . 144 208 Maximum Alert Level 1 | . . . 1 1 Low Security (%) 78 | 100 100 . 64 32 Level 1 21 | . . . 35 67 Level 2 . | . . . . . Level 3 . | . . . . . Level 4 . | . . . . . Level 5 . | . . . . . High Security . | . . . . . Max Security . | . . . . . Squads Dispatched 10 | . 3 . 2 5 Investigation 3 | . 1 . . 2 Extermination . | . . . . . Reinforcement 6 | . 2 . 2 2 Assault . | . . . . . Garrison 1 | . . . . 1 Intercept . | . . . . . Searches Triggered . | . . . . . Construction Impeded . | . . . . . Haulers Reinforced . | . . . . . Active Scanning Responses . | . . . . . Cargo Convoy Interrupts . | . . . . . Stealth | -11 -10 -10 -8 -7 --------- Run | Yrd Mat Sub Mat Fac Distress Signals 3 | . 1 . 2 . Communications Jammed . | . . . . . Distress Signals . | . . . . . Times Spotted 81 | . 25 9 31 16 Peak Tracking Total 9 | . 6 2 9 7 Tactical Retreats 2 | . . . 1 1 Traps | -11 -10 -10 -8 -7 ------- Run | Yrd Mat Sub Mat Fac Traps Triggered 3 | . 1 . 1 1 Indirectly . | . . . . . Trap Hack Attempts . | . . . . . Triggered . | . . . . . Disarmed . | . . . . . Reprogrammed . | . . . . . Reused . | . . . . . Traps Extracted . | . . . . . Installed 1 | . . 1 . . Triggered . | . . . . . Most Traps Carried 1 | . . 1 . . Machines | -11 -10 -10 -8 -7 ---------- Run | Yrd Mat Sub Mat Fac Machines Disabled . | . . . . . Max in Single Turn . | . . . . . Machines Repaired . | . . . . . Machines Dismantled . | . . . . . Machines Sabotaged . | . . . . . Overloaded Fab Kills . | . . . . . Hacking | -11 -10 -10 -8 -7 --------- Run | Yrd Mat Sub Mat Fac Machines Accessed 11 | . . . 4 7 Terminals 7 | . . . 3 4 Fabricators 2 | . . . . 2 Repair Stations . | . . . . . Recycling Units . | . . . . . Scanalyzers 1 | . . . 1 . Garrison Access 1 | . . . . 1 Total Hacks 19 | . . . 8 11 Successful 13 | . . . 8 5 Failed 6 | . . . . 6 Catastrophic 3 | . . . . 3 Database Lockouts . | . . . . . Manual 9 | . . . 4 5 Terminals 11 | . . . 6 5 Fabricators 4 | . . . . 4 Repair Stations . | . . . . . Recycling Units . | . . . . . Scanalyzers 2 | . . . 2 . Garrison Access 2 | . . . . 2 Terminal Hacks 3 | . . . 3 . Branch Access Points 1 | . . . 1 . Unreport Threat 1 | . . . 1 . Locate Traps 1 | . . . 1 . Fabricator Hacks 2 | . . . . 2 Load Schematic 1 | . . . . 1 Build 1 | . . . . 1 Repair Station Hacks . | . . . . . Recycling Unit Hacks . | . . . . . Scanalyzer 2 | . . . 2 . Insert Component 1 | . . . 1 . Analyze 1 | . . . 1 . Garrison Access Hacks 1 | . . . . 1 Coupler Status 1 | . . . . 1 Unauthorized Hacks 5 | . . . 3 2 Terminals 5 | . . . 3 2 Assimilate 1 | . . . 1 . Botnet 4 | . . . 2 2 Fabricators . | . . . . . Repair Stations . | . . . . . Recycling Units . | . . . . . Scanalyzers . | . . . . . Garrison Access . | . . . . . Data Cores Recovered . | . . . . . Used . | . . . . . Hacking Detections 5 | . . . 1 4 Full Trace Events 2 | . . . . 2 Feedback Events . | . . . . . Feedback Blocked . | . . . . . Robot Schematics Acquired . | . . . . . Robots Built 1 | . . . . 1 Authchips . | . . . . . Time 81 | . . . . 81 Total Robot Build Rating 1 | . . . . 1 Part Schematics Acquired 1 | . . . 1 . Parts Built . | . . . . . Authchips . | . . . . . Time . | . . . . . Total Part Build Rating . | . . . . . Parts Repaired . | . . . . . Time . | . . . . . Parts Recycled . | . . . . . Recycled Matter . | . . . . . Retrieved Matter . | . . . . . Retrieved Components . | . . . . . Parts Scanalyzed 1 | . . . 1 . Part Schematics Acquired 1 | . . . 1 . Parts Damaged . | . . . . . Bothacking | -11 -10 -10 -8 -7 ------------ Run | Yrd Mat Sub Mat Fac Used RIF Installer . | . . . . . Robots Hacked . | . . . . . Non-combat . | . . . . . Combat . | . . . . . Robot Hacks Applied . | . . . . . Relay Couplers Released . | . . . . . Fabnet Peak Effective % . | . . . . . Robots Rewired . | . . . . . Allies Hacked . | . . . . . Hacks Repelled . | . . . . . Allies | -11 -10 -10 -8 -7 -------- Run | Yrd Mat Sub Mat Fac Total Allies 1 | . . . . 1 Largest Group 1 | . . . . 1 Highest-Rated Group 10 | . . . . 10 Highest-Rated Ally 10 | . . . . 10 Total Orders . | . . . . . Ally Attacks . | . . . . . Total Damage . | . . . . . Kills . | . . . . . Allies Corrupted . | . . . . . Allies Melted . | . . . . . Intel | -11 -10 -10 -8 -7 ------- Run | Yrd Mat Sub Mat Fac Robot Analysis Total . | . . . . . Derelict Logs Recovered . | . . . . . Drone Launches . | . . . . . Drone Recoveries . | . . . . . Exploration | -11 -10 -10 -8 -7 ------------- Run | Yrd Mat Sub Mat Fac Turns Passed 4962 | 118 1528 1868 956 492 Spaces Moved 3196 | 78 724 1041 502 851 Core 6 | 6 . . . . Treads 699 | . 423 147 129 . Legs 1292 | 72 301 546 373 . Wheels 348 | . . 348 . . Hover . | . . . . . Flight 851 | . . . . 851 Fastest Speed 26 | 50 120 95 120 26 Average Speed 117 | 117 150 156 137 29 Slowest Speed 330 | 120 330 190 225 195 Overloaded Moves . | . . . . . Propulsion Burnouts . | . . . . . Robots Hopped 1 | . . . . 1 Cave-ins Triggered . | . . . . . Exploration Rate (%) 46 | 4 86 69 49 22 Regions Visited 4 Branch Regions 1 Pre-discovered Areas . | . . . . . Known Exits Taken . | . . . . . Unknown Exits Taken 4 | 1 1 1 1 . Scrap Searched 3 | . . 3 . . Spaces Dug 20 | . . 4 5 11 Terrain Destroyed 31 | . . 4 5 22 Melee 20 | . . 4 5 11 Projectile . | . . . . . AOE 11 | . . . . 11 Terrain Rammed . | . . . . . Walls Destroyed . | . . . . . Machines Disabled . | . . . . . Actions | -11 -10 -10 -8 -7 --------- Run | Yrd Mat Sub Mat Fac Total 3985 | 96 1010 1169 681 1029 Wait 370 | . 192 20 53 105 Move 3190 | 77 723 1040 501 849 Hop 1 | . . . . 1 Pick Up 47 | 10 7 12 13 5 Fast Attach 24 | 4 1 . 12 7 Attach 22 | 2 2 9 5 4 Detach 3 | . . 1 . 2 Swap 30 | . 5 11 9 5 Drop 39 | . 4 4 21 10 Fire 123 | 3 76 39 1 4 Melee 133 | . . 32 65 36 Ram . | . . . . . Kick . | . . . . . Crush . | . . . . . Escape Stasis . | . . . . . Rewire . | . . . . . Trap 1 | . . 1 . . Miscellaneous 2 | . . . 1 1 Route ------- -11/Scrapyard -10/Materials (discovered 5 exits: [*Mat x3] / [*Min] / [*Sub]) -10/Subcaves (discovered 2 exits: *Mat x2) -8/Materials (discovered 2 exits: *Fac / Sto) -7/Factory History --------- Turn | Location | Event 18 | -11/Scrapyard | Discovered new exit (range 16) 119 | -11/Scrapyard | Entered Materials 204 | -10/Materials | Discovered new exit (range 16) 283 | -10/Materials | Discovered new exit (range 16) 315 | -10/Materials | Build established: Mutant 337 | -10/Materials | Discovered new exit (range 15) 395 | -10/Materials | Discovered new exit (range 3) 1440 | -10/Materials | Discovered new exit (range 9) 1647 | -10/Materials | Entered Subcaves 1702 | -10/Subcaves | Shifting Twisted Machinery released Flamer 1716 | -10/Subcaves | Shifting Twisted Machinery released Barrage Gun 1717 | -10/Subcaves | Shifting Twisted Machinery released Riot Gun 1718 | -10/Subcaves | Shifting Twisted Machinery released Mak. Axe 1872 | -10/Subcaves | A swath of the cavern ceiling suddenly collapsed 2018 | -10/Subcaves | Discovered new exit (range 9) 2027 | -10/Subcaves | Lost 4 parts (1p2n1w) 2080 | -10/Subcaves | Shifting Twisted Machinery released Sub. Power Source 2081 | -10/Subcaves | Shifting Twisted Machinery released Sub. Machine Gun 3271 | -10/Subcaves | A swath of the cavern ceiling suddenly collapsed 3343 | -10/Subcaves | Core integrity fell below 50% 3496 | -10/Subcaves | Discovered new exit (range 11) 3515 | -10/Subcaves | Entered Materials 3515 | -8/Materials | Evolved 4 slots: Propulsion x1, Utility x3 3912 | -8/Materials | Identified exit to Storage 4219 | -8/Materials | Destroyed 11 combat bots 4226 | -8/Materials | Lost 3 parts (1n1u1w) 4307 | -8/Materials | Discovered new exit (range 14) 4471 | -8/Materials | Entered Factory 4471 | -7/Factory | Evolved 2 slots: Propulsion x1, Utility x1 4676 | -7/Factory | Fabricated A-02 Transporter? 4769 | -7/Factory | Build established: Sprinter 4961 | -7/Factory | Core integrity fell below 50% 4963 | -7/Factory | Self-destructed Last Messages --------------- 04899_ R-06 Scavenger collects Carbon-fiber Leg. 04900_ K-01 Serf collects debris. 04901_ R-06 Scavenger collects Carbon-fiber Leg. 04903_ K-01 Serf cleans the Terminal. 04908_ Sneak attack on K-01 Serf. 04908_ Destroyed Wheel. 04908_ K-01 Serf destroyed. 04913_ ALERT: Hostiles spotted, dispatching reinforcements to Terminal F003. 04939_ G-47 Trooper Particle Gun severed. 04941_ U-05 Engineer builds a Door. 04949_ Imp. Deuterium Engine destroyed. 04950_ K-01 Serf collects debris. 04952_ Cesium-ion Thruster destroyed. 04955_ K-01 Serf collects debris. 04956_ Y-54 Guardian emerges from the garrison. 04958_ K-01 Serf collects debris. 04958_ Imp. Grenade Launcher destroyed. 04961_ U-05 Engineer lays Concrete. 04961_ Katana destroyed. Map ----- +----------------------------------------------------+ | # ##### # """ # """ #???????# #???????? | | + # """ # """ ######### #???????? | | # # """ # + #???????? | | # # # ######### #???????? | | # " ######"######### ##### # | | ############## #????# + | | #????????????# #????# # ######## # | | ##+#########????# #????# # #??????????? | | ## +???? #????# # #??????????? | | ## #????# #???##"######### #??????????? | | ## #????# #???#"##???????# #??????????? | | ## #????# #??# ???????# #??????????? | | ## #????# #??# ?????#+#??????????? | | ## #????# #??# #??? ??????????? | | ## #????# #??# *= !#??? ??????????? | | ## #????# #??# *= #?? T?????????? | | ##+############# ##?# != #?? "?????????? | | T #?# #?""" ????????? | | "" #? #?""" ????????? | | #?# ""T"" # """ = ???????? | | ############### #?# """"" # ???????? | | #####??######## ### # #########??????? | | ???????# [ Y #######+############??????? | | ######## " Y % u ????? | | + !! "" Y g Y u k ????? | | ######## !! G g @ k ! ????? | | ???????# u"" ############+?????????????? | | ???????# " # ###?????????????????????????? | | ???????# #?# #???????????????????????????? | | ???????# ! ###[##??????????????????????????? | | ???????######+##### #??????????????????????????? | | ????????????# #??????????????????????????? | | ????????????# #??????????????????????????? | | #############* ##??????????????????????????? | | +%=%!%!= #???????????????????????????? | | """ #########+###+#???????????????????????????? | | ""T"" #???# #???????????????????????????? | | "" "" #???# #???????????????????????????? | | #???# #???????????????????????????? | | #???# [ #???????????????????????????? | | #???###########???????????????????????????? | | """"" #?? #????????????????????????????? | | """"" # """ """ #????????????????????????????? | | """"" # """ """ #????????????????????????????? | | """"" # """ """ #????????????????????????????? | | # #????????????????????????????? | | +####### """ """ #????????????????????????????? | | #???# """ """ #????##############??????????? | | #???# """ """ #????# #??????????? | | #???# #????# """ """ #??????????? | +----------------------------------------------------+ Best States ------------- Heat Dissipation 34 Energy Generation 16 Energy Capacity 290 Matter Stores 300 Matter Capacity 300 Sight Range 20 Terrain Scan Range 16 Terrain Scan Density 210 Armor Coverage 100 Evasion (%) 64 Melee Accuracy 5 Target Analysis 5 Recoil Reduction 2 Offensive Hacking 20 Item Schematics ----------------- Multitool | -8/Materials | Scanalyzed Robot Schematics ------------------ None Fabricated ------------ A-02 Transporter | x1 | -7/Factory | Preloaded Alien Tech Used ----------------- None Achievements -------------- None Challenges ------------ None Game ------ Seed PersonalAluminumStick Manual? 0 Play Time 00:37:41 Cumulative 87.0 hours Start 2024.12.02 @ 03:12:17 End 2024.12.02 @ 03:49:40 Sessions 1 Manual Loads 0 Difficulty Rogue Special Mode None Game No. 94 Rogue 94 Adventurer 0 Explorer 0 Win Type - Total 0 Types 0/0/0/0/0/0/0/0/0 Lore% 12 Gallery% 38 Achievement% 33 Wizard Run 0 Options --------- Layout 2 ASCII 0 Keyboard 0 Movement Mouse Keybinds 0 Fullscreen 2 Font 16/SmallcapsGlow Map View 55x47 Zoom Use 0% Tactical HUD 1 Map Filters NONE Filters NONE Steam 1 RUN: 1102307f-0b83-4a87-837f-49909c00da18